bitfinex/quotes_ETHUSD_20250216
["timestamp","ask_amount","ask_price","bid_price","bid_amount"]
[1739731990017,0.8263,2678.1,2677.7,3.73447]
[1739731990492,0.8263,2678.1,2677.5,6.08745125]
[1739731990690,0.8263,2678.1,2677.7,3.73442]
[1739731991019,0.8263,2678.1,2677.7,8.45106713]
[1739731991423,0.8263,2678.1,2677.7,4.71660713]
[1739731991628,4.56029,2678.1,2677.6,3.73468]
[1739731992961,4.56029,2678.1,2677.5,9.82224125]
[1739731993163,0.8263,2678.1,2677.8,3.73438]
[1739731993331,0.8263,2678.1,2677.5,6.08745125]
[1739731993332,0.8263,2678.1,2677.7,3.7345]
[1739731994561,0.8263,2678.1,2677.6,3.73467]
[1739731994746,0.8263,2678.1,2677.7,4.63015982]
[1739731994915,0.8263,2678.1,2677.9,3.73424]
[1739731995534,0.8263,2678.1,2677.8,3.7344]
[1739731998359,0.8263,2678.1,2677.9,3.73424]
[1739731998629,0.7659,2678.4,2678.0,3.73412]
[1739731998768,0.7659,2678.4,2678.1,3.73392]
[1739732000067,0.7659,2678.4,2678.2,3.73381]
[1739732000273,0.7659,2678.4,2678.1,3.73392]
[1739732000452,0.7659,2678.4,2678.0,6.60406769]
[1739732000653,4.49947,2678.4,2678.0,6.60406769]
[1739732001338,4.49947,2678.4,2678.0,2.86994769]
[1739732001567,4.49947,2678.4,2678.0,6.60403769]
[1739732001873,4.49947,2678.4,2678.0,2.86994769]
[1739732002372,4.49947,2678.4,2678.0,6.60404769]
[1739732003561,0.7659,2678.4,2678.0,6.60404769]
[1739732004271,0.7832,2678.3,2677.8,3.73431]
[1739732004457,4.51697,2678.3,2677.9,3.73425]
[1739732004883,0.7832,2678.3,2677.9,3.73418]
[1739732006273,0.7832,2678.3,2677.9,7.46837]
[1739732006604,0.7832,2678.3,2677.9,3.73418]
[1739732007250,0.7832,2678.3,2677.9,7.46836]
[1739732007893,0.7832,2678.3,2678.0,3.73412]
[1739732008449,0.7832,2678.5,2678.1,3.73398]
[1739732008873,4.51663,2678.5,2678.0,3.73412]
[1739732010448,4.51663,2678.5,2678.0,3.73404]
[1739732010970,0.7832,2678.5,2678.1,3.7339]
[1739732011172,0.7832,2678.5,2678.2,3.73373]
[1739732011766,4.51664,2678.5,2678.1,3.73398]
[1739732011971,3.73365,2678.4,2678.0,2.86994769]
[1739732012169,4.51697,2678.3,2677.8,3.7344]
[1739732013183,0.7832,2678.3,2677.7,6.62532415]
[1739732013351,4.51692,2678.3,2677.8,3.73434]
[1739732014051,0.7832,2678.3,2677.7,10.35978415]
[1739732014379,0.7832,2678.3,2677.9,3.73419]
[1739732014584,4.51691,2678.3,2677.9,3.73419]
[1739732017188,0.7832,2678.3,2677.9,3.73417]
[1739732018693,0.7832,2678.3,2677.8,3.7344]
[1739732018884,4.51701,2678.3,2677.8,3.7344]
[1739732019084,4.51701,2678.3,2677.9,3.73425]
[1739732019862,0.7832,2678.3,2677.7,9.19098257]
[1739732020064,0.7832,2678.3,2677.9,3.73422]
[1739732020563,0.7832,2678.3,2678.0,3.73406]
[1739732020765,0.7832,2678.3,2678.0,2.86994769]
[1739732020965,0.788,2678.7,2678.2,3.73372]
[1739732021276,4.52121,2678.7,2678.2,3.73372]
[1739732023483,4.52121,2678.7,2678.2,3.73385]
[1739732025913,4.52121,2678.7,2678.3,0.73392576]
[1739732026111,0.788,2678.7,2678.3,4.42405003]
[1739732026311,0.788,2679.4,2678.6,6.60315769]
[1739732026522,0.788,2679.4,2678.9,2.86994769]
[1739732026681,4.52018,2679.4,2678.9,2.86994769]
[1739732026882,5.345392,2679.4,2678.9,2.86994769]
[1739732027083,5.345392,2679.4,2678.9,6.60272769]
[1739732027593,0.788,2679.4,2679.0,3.73272]
[1739732027782,4.52018,2679.4,2678.9,2.86994769]
[1739732027983,4.52018,2679.4,2678.9,6.60275769]
[1739732028320,0.788,2679.4,2679.0,3.73266]
[1739732030522,0.788,2679.4,2678.9,3.60880213]
[1739732030705,3.73235,2679.3,2678.9,2.86994769]
[1739732031420,1.240005,2679.4,2678.9,6.60281769]
[1739732031623,4.972195,2679.4,2678.9,6.60281769]
[1739732031990,4.52019,2679.4,2678.9,6.60281769]
[1739732033414,3.73232,2679.3,2678.9,2.86994769]
[1739732035227,0.788,2679.4,2678.9,2.86994769]
[1739732035526,0.788,2679.4,2679.0,3.7327]
[1739732035902,4.52025,2679.4,2678.9,6.60280769]
[1739732036731,0.788,2679.4,2679.0,3.73271]
[1739732037022,3.73188,2679.7,2679.2,2.86994769]
[1739732037227,0.772,2679.6,2679.2,6.60233769]
[1739732037935,4.5039,2679.6,2679.2,2.86994769]
[1739732038894,3.73206,2679.5,2679.2,2.86994769]
[1739732039625,4.5039,2679.6,2679.2,2.86994769]
[1739732040217,3.73204,2679.5,2679.2,2.86994769]
[1739732040418,3.73211,2679.5,2679.2,2.86994769]
[1739732041306,0.772,2679.6,2679.2,2.86994769]
[1739732041506,4.5039,2679.6,2679.2,6.60239769]
[1739732041702,3.73206,2679.5,2679.2,2.86994769]
[1739732044735,0.772,2679.3,2678.9,2.86994769]
[1739732044933,3.91427187,2680.1,2678.9,2.86994769]
[1739732044934,0.772,2679.1,2678.9,2.86994769]
[1739732045930,3.73273,2679.0,2678.6,8.19994769]
[1739732046130,0.772,2678.8,2678.6,2.86994769]
[1739732046334,4.955518,2678.8,2678.4,8.87]
[1739732046535,4.50502,2678.8,2678.4,8.87]
[1739732046730,3.73321,2678.7,2678.4,8.87]
[1739732047154,0.772,2678.5,2678.4,8.87]
[1739732047434,0.772,2678.5,2678.0,6.60404769]
[1739732047435,4.50543,2678.5,2678.0,6.60404769]
[1739732048343,7.46723,2678.4,2678.0,2.86994769]
[1739732048918,3.73371,2678.3,2678.0,2.86994769]
[1739732049119,0.7823,2678.2,2678.0,2.86994769]
[1739732050338,4.51616,2678.2,2678.0,2.86994769]
[1739732050727,0.7823,2678.2,2678.0,2.86994769]
[1739732054648,0.7823,2678.4,2678.0,6.60396769]
[1739732055034,4.51591,2678.4,2678.0,2.86994769]
[1739732055770,0.7823,2678.4,2678.0,2.86994769]
[1739732055982,0.38827138,2679.4,2678.0,4.48322444]
[1739732056121,4.5151,2679.0,2678.3,2.86994769]
[1739732056322,4.5151,2679.0,2678.4,3.73347]
[1739732056323,3.7329,2678.9,2678.4,3.73347]
[1739732056628,3.73301,2678.8,2678.3,7.38074769]
[1739732057455,3.73315,2678.7,2678.3,3.64714769]
[1739732059465,3.73301,2678.8,2678.3,7.38075769]
[1739732059628,4.51507,2679.0,2678.3,7.38075769]
[1739732059629,0.7823,2679.0,2678.3,4.75860046]
[1739732059828,4.5151,2679.0,2678.5,3.73332]
[1739732060845,3.73252,2679.2,2678.8,3.73301]
[1739732061197,3.73248,2679.2,2678.8,0.7772]
[1739732061338,3.73248,2679.2,2678.7,3.73315]
[1739732062672,3.73248,2679.2,2678.6,7.38043769]
[1739732062973,3.73248,2679.2,2678.6,11.11359769]
[1739732063140,3.73248,2679.2,2678.6,11.86946591]
[1739732064161,3.73248,2679.2,2678.7,3.73306]
[1739732064364,4.51463,2679.3,2678.8,3.73294]
[1739732065958,0.7823,2679.3,2678.8,3.73294]
[1739732066123,3.73247,2679.2,2678.8,3.73294]
[1739732066457,3.73247,2679.2,2678.6,9.3231525]
[1739732066665,3.73247,2679.2,2678.7,4.66545525]
[1739732067364,3.73247,2679.2,2678.8,3.733]
[1739732068272,3.73247,2679.2,2678.7,4.66543525]
[1739732068682,7.46505,2679.2,2678.7,4.66543525]
[1739732068862,7.46505,2679.2,2678.7,3.73312]
[1739732069362,3.73247,2679.2,2678.7,3.73312]
[1739732070281,3.73247,2679.2,2678.7,3.73308]
[1739732070682,3.73247,2679.2,2678.7,3.73305]
[1739732071042,3.73247,2679.2,2678.7,7.46613]
[1739732071248,3.73247,2679.2,2678.7,4.91996459]
[1739732073363,3.73247,2679.2,2678.7,8.65305459]
[1739732073733,4.5147,2679.3,2678.7,4.91996459]
[1739732073893,4.5147,2679.3,2678.9,2.86994769]
[1739732074186,0.7823,2679.3,2678.9,6.60271769]
[1739732074360,0.7823,2679.3,2678.9,7.38168092]
[1739732074550,0.7823,2679.3,2679.0,3.73272]
[1739732075187,0.7823,2679.3,2678.9,7.38168092]
[1739732075486,4.51464,2679.3,2678.9,7.38168092]
[1739732075864,0.7823,2679.3,2678.9,7.38168092]
[1739732076266,4.51465,2679.3,2678.9,7.38168092]
[1739732079189,0.7823,2679.3,2678.9,7.38168092]
[1739732079389,0.7823,2679.3,2679.0,0.73816809]
[1739732079776,0.7823,2679.3,2678.9,11.11448092]
[1739732079958,0.7823,2679.3,2678.9,7.38168092]
[1739732081691,0.7823,2679.3,2678.9,11.11448092]
[1739732081873,0.7823,2679.3,2678.9,7.38168092]
[1739732082462,0.7929,2680.0,2678.9,7.38168092]
[1739732082666,1.8513048,2680.2,2679.1,3.73257]
[1739732082667,4.525,2679.5,2679.1,3.73257]
[1739732082864,0.7929,2679.5,2679.1,3.73257]
[1739732083574,4.52495,2679.5,2679.2,2.86994769]
[1739732087495,0.7929,2679.5,2679.2,2.86994769]
[1739732087697,0.7694,2679.8,2679.4,3.73216]
[1739732087904,4.50102,2679.8,2679.4,3.73216]
[1739732088891,4.50102,2679.8,2679.3,3.73228]
[1739732090119,4.50102,2679.8,2679.4,3.73214]
[1739732090967,0.7694,2679.8,2679.4,3.73214]
[1739732091283,4.50109,2679.8,2679.3,4.4610809]
[1739732091798,3.73181,2679.7,2679.3,0.7287809]
[1739732092098,3.73181,2679.7,2679.3,4.4610809]
[1739732092277,4.50103,2679.8,2679.3,4.4610809]
[1739732092821,0.7694,2679.8,2679.3,4.4610809]
[1739732093022,3.73176,2679.7,2679.3,4.4610809]
[1739732093517,0.7694,2679.8,2679.4,3.7321]
[1739732093922,4.50102,2679.8,2679.3,4.4610909]
[1739732094133,3.73178,2679.7,2679.3,4.4610909]
[1739732094820,4.50102,2679.8,2679.3,4.4610909]
[1739732095025,4.50102,2679.8,2679.3,5.72719476]
[1739732096216,4.50102,2679.8,2679.3,5.72712476]
[1739732097599,4.50102,2679.8,2679.4,3.73216]
[1739732097795,0.7694,2679.8,2679.5,2.86994769]
[1739732098124,0.7694,2679.8,2679.5,6.60195769]
[1739732098489,0.7694,2679.8,2679.5,2.86994769]
[1739732099642,4.56246,2680.0,2679.5,2.86994769]
[1739732099804,4.56246,2680.0,2679.5,6.60189769]
[1739732101741,3.73153,2679.9,2679.5,2.86994769]
[1739732102240,3.73163,2679.8,2679.5,2.86994769]
[1739732106662,3.73163,2679.8,2679.7,1.39040257]
[1739732107072,4.561039,2679.8,2679.5,1.39040257]
[1739732107215,3.73225,2679.4,2679.1,6.72040257]
[1739732107560,0.8311,2679.3,2679.1,1.39040257]
[1739732109043,4.56344,2679.3,2679.1,1.39040257]
[1739732109252,3.73245,2679.2,2679.1,1.39040257]
[1739732110615,3.73245,2679.2,2678.8,17.06910606]
[1739732111654,4.56342,2679.3,2678.8,20.80209606]
[1739732112869,0.8311,2679.3,2678.9,3.73286]
[1739732113065,0.7767,2680.4,2679.2,0.8055]
[1739732113271,0.7767,2680.2,2679.5,2.86910606]
[1739732113420,3.73155,2679.9,2679.5,2.86910606]
[1739732114024,3.73177,2679.7,2679.2,7.40703606]
[1739732114263,3.73178,2679.7,2679.2,7.40703606]
[1739732114753,3.73178,2679.7,2679.3,3.73231]
[1739732115128,0.7767,2679.8,2679.3,3.73231]
[1739732115469,3.0,2680.4,2679.3,3.73231]
[1739732115470,0.7604,2680.0,2679.6,3.73188]
[1739732115637,4.49175,2680.0,2679.5,6.60113606]
[1739732115837,8.22318,2680.0,2679.5,2.86910606]
[1739732116631,3.73153,2679.9,2679.5,2.86910606]
[1739732116826,3.73178,2679.7,2679.2,7.40695606]
[1739732117145,3.7321,2679.5,2679.0,7.53565]
[1739732117366,3.7321,2679.5,2679.0,3.803]
[1739732117531,3.73226,2679.4,2679.0,3.0]
[1739732117732,4.49236,2679.6,2679.1,3.73257]
[1739732117932,3.73208,2679.5,2679.0,3.0]
[1739732118134,3.73213,2679.5,2679.0,3.7326]
[1739732118344,0.7604,2679.2,2678.9,3.14810606]
[1739732118930,8.2247,2679.5,2678.9,6.88090606]
[1739732119130,4.49253,2679.5,2678.9,3.14810606]
[1739732119333,0.7604,2679.5,2679.0,0.803]
[1739732119544,4.49202,2679.8,2679.2,6.60148606]
[1739732119748,5.314379,2679.8,2679.2,2.86910606]
[1739732119947,3.73128,2680.1,2679.5,7.40406606]
[1739732120482,3.73129,2680.1,2679.5,7.40405606]
[1739732120631,3.73135,2680.0,2679.5,7.40405606]
[1739732121033,7.46261,2680.1,2679.5,7.40405606]
[1739732121282,3.73135,2680.0,2679.6,0.73487638]
[1739732121584,3.73129,2680.1,2679.6,4.46669638]
[1739732121732,7.46261,2680.1,2679.6,4.46669638]
[1739732122129,3.73136,2680.0,2679.6,4.46669638]
[1739732122449,3.73136,2680.0,2679.6,0.73487638]
[1739732122978,3.73129,2680.1,2679.5,2.86910606]
[1739732123279,3.73164,2679.8,2679.5,2.86910606]
[1739732123663,3.7319,2679.6,2679.2,7.40446606]
[1739732123896,4.5234,2679.6,2679.2,6.60146606]
[1739732124040,0.7915,2679.6,2679.3,3.73231]
[1739732124244,4.52314,2679.8,2679.3,3.73231]
[1739732124655,4.52314,2679.8,2679.4,3.73217]
[1739732125172,3.73177,2679.7,2679.2,6.60146606]
[1739732126288,3.73177,2679.7,2679.2,8.11684894]
[1739732126437,4.52314,2679.8,2679.3,3.73228]
[1739732126635,0.7915,2679.8,2679.4,3.73215]
[1739732127088,0.7915,2680.3,2679.5,2.90642778]
[1739732127268,0.7915,2680.3,2679.8,6.60062606]
[1739732127593,0.7915,2680.3,2679.9,3.73139]
[1739732128091,3.73078,2680.4,2679.9,3.73139]
[1739732128992,0.7915,2680.5,2680.1,2.86910606]
[1739732129994,3.73059,2680.6,2680.1,6.60022606]
[1739732130210,3.73059,2680.6,2680.1,2.86910606]
[1739732130610,3.73051,2680.6,2680.1,6.60028606]
[1739732132109,3.73066,2680.5,2680.1,2.86910606]
[1739732132411,3.73066,2680.5,2680.1,3.52913867]
[1739732133812,0.7915,2680.8,2680.1,3.52913867]
[1739732133976,0.7915,2680.8,2680.4,2.86910606]
[1739732133977,4.52181,2680.8,2680.4,2.86910606]
[1739732134181,3.73044,2680.7,2680.4,2.86910606]
[1739732134379,3.73044,2680.7,2680.4,3.60715467]
[1739732134977,0.7915,2680.8,2680.4,7.33793467]
[1739732135176,3.73009,2680.9,2680.4,3.60715467]
[1739732135417,3.73024,2680.8,2680.4,3.60715467]
[1739732136082,3.73033,2680.8,2680.4,3.60715467]
[1739732136282,3.73033,2680.8,2680.5,0.43875547]
[1739732136478,3.73038,2680.7,2680.5,0.43875547]
[1739732137592,3.7305,2680.6,2680.5,0.43875547]
[1739732137814,3.73038,2680.7,2680.5,0.43875547]
[1739732138635,3.73038,2680.7,2680.0,4.46359188]
[1739732138636,3.73078,2680.4,2680.1,2.86910606]
[1739732138985,3.73059,2680.6,2680.1,2.86910606]
[1739732139388,3.73065,2680.5,2680.1,6.60023606]
[1739732139626,3.73065,2680.5,2680.1,2.86910606]
[1739732139834,3.73106,2680.3,2680.1,2.86910606]
[1739732139986,4.55039,2680.4,2679.8,3.69290606]
[1739732140186,3.73092,2680.3,2679.8,3.69290606]
[1739732140803,3.73092,2680.3,2679.8,7.42445606]
[1739732141131,4.55039,2680.4,2679.8,7.42445606]
[1739732141335,4.55039,2680.4,2679.9,5.40788161]
[1739732143348,3.73079,2680.4,2679.9,5.40788161]
[1739732143903,3.73079,2680.4,2679.9,1.67641161]
[1739732144103,3.73099,2680.3,2679.9,1.67641161]
[1739732145049,3.73118,2680.2,2679.8,3.69290606]
[1739732145204,3.73122,2680.1,2679.8,3.69290606]
[1739732145406,0.8196,2680.1,2679.5,0.74919028]
[1739732145751,3.73185,2679.7,2679.2,6.60149606]
[1739732146307,3.73211,2679.5,2679.2,2.86910606]
[1739732146542,3.73211,2679.5,2679.1,0.8238]
[1739732146754,3.73269,2679.1,2678.8,0.8238]
[1739732147050,3.73268,2679.1,2678.6,3.69290606]
[1739732147203,3.73287,2678.9,2678.6,3.69290606]
[1739732147658,3.73268,2679.1,2678.6,3.69290606]
[1739732148038,3.73291,2678.9,2678.6,3.69290606]
[1739732148240,3.73291,2678.9,2678.6,2.86910606]
[1739732148607,3.73274,2679.0,2678.6,2.86910606]
[1739732149627,3.73274,2679.0,2678.4,9.1968]
[1739732149810,3.73274,2679.0,2678.4,14.53806061]
[1739732150304,0.8196,2679.2,2678.4,9.1968]
[1739732150508,3.73314,2678.8,2678.4,8.373]
[1739732150710,0.8196,2679.2,2678.4,8.373]
[1739732151014,3.7334,2678.6,2678.1,3.0]
[1739732151862,3.73365,2678.4,2678.0,2.86910606]
[1739732152559,3.73392,2678.2,2677.7,2.86910606]
[1739732152861,7.4679,2678.2,2677.7,2.86910606]
[1739732153013,3.73399,2678.1,2677.7,2.86910606]
[1739732153840,3.73392,2678.2,2677.7,2.86910606]
[1739732154359,3.73407,2678.1,2677.7,2.86910606]
[1739732154767,0.8196,2678.3,2677.7,3.98659435]
[1739732154964,0.7876,2678.6,2678.0,2.86910606]
[1739732155260,3.73394,2678.2,2677.7,3.98659435]
[1739732156368,3.73408,2678.1,2677.7,3.98659435]
[1739732160468,0.7876,2678.0,2677.3,0.7752]
[1739732160617,3.7349,2677.5,2677.2,5.33]
[1739732160961,3.73464,2677.7,2677.2,5.33]
[1739732161164,3.7347,2677.6,2677.2,5.33]
[1739732162208,3.73442,2677.8,2677.2,9.06515]
[1739732162459,3.73454,2677.7,2677.2,9.06515]
[1739732162631,3.73471,2677.6,2677.2,5.33]
[1739732163162,3.73471,2677.6,2677.2,9.06523]
[1739732163758,3.73471,2677.6,2677.2,3.73523]
[1739732164093,3.73471,2677.6,2677.1,8.11479277]
[1739732166449,0.7876,2677.5,2677.1,3.60422277]
[1739732166649,0.7876,2677.5,2676.9,0.7752]
[1739732166879,0.7876,2677.5,2676.7,3.0]
[1739732167481,0.7876,2677.5,2676.6,3.75179487]
[1739732167687,0.7876,2677.4,2676.6,7.48784487]
[1739732167904,3.73531,2677.2,2676.7,3.73592]
[1739732168106,1.239853,2677.4,2676.6,3.0]
[1739732168312,3.73565,2677.0,2676.6,3.0]
[1739732168776,4.52331,2676.9,2676.6,3.0]
[1739732169477,4.52331,2676.9,2676.5,6.09225411]
[1739732169780,3.73581,2676.8,2676.5,0.76225411]
[1739732170779,3.73603,2676.7,2676.5,0.76225411]
[1739732171076,3.73624,2676.5,2676.1,5.33]
[1739732171305,0.7714,2676.4,2676.1,5.33]
[1739732171613,4.50777,2676.4,2676.1,5.33]
[1739732171809,0.7714,2676.4,2676.1,5.33]
[1739732172782,4.50748,2676.6,2676.1,9.0667]
[1739732173110,5.4144204,2676.6,2676.1,9.0667]
[1739732173414,4.50681,2677.1,2676.5,3.73608]
[1739732173712,4.50681,2677.1,2676.8,3.73578]
[1739732173713,0.7714,2677.1,2676.8,3.73578]
[1739732173922,4.50688,2677.1,2676.6,3.59288006]
[1739732174116,3.73552,2677.0,2676.6,3.59288006]
[1739732174280,4.957568,2677.1,2676.4,3.0]
[1739732174480,8.693028,2677.1,2676.5,3.73618]
[1739732174680,4.957548,2677.1,2676.5,3.73618]
[1739732174916,8.693018,2677.1,2676.5,3.73618]
[1739732175106,4.957548,2677.1,2676.5,3.73618]
[1739732175303,4.957548,2677.1,2676.6,3.73607]
[1739732175789,3.7356,2677.0,2676.5,3.7362]
[1739732176525,3.73567,2676.9,2676.4,6.73635]
[1739732176885,3.73567,2676.9,2676.4,6.73628]
[1739732177619,4.2312848,2677.0,2676.5,3.7362]
[1739732177816,0.4957548,2677.0,2676.6,3.73607]
[1739732177980,8.693018,2677.1,2676.6,3.73607]
[1739732178795,3.73554,2677.0,2676.4,7.55828]
[1739732179117,0.7714,2676.9,2676.4,6.73623]
[1739732180114,0.7714,2676.9,2676.4,3.0]
[1739732180322,4.50715,2676.9,2676.4,3.0]
[1739732180530,8.24289,2676.9,2676.4,3.0]
[1739732180728,5.3764978,2676.9,2676.4,3.0]
[1739732180907,0.7714,2676.8,2676.1,5.33]
[1739732181110,0.7714,2676.4,2676.1,5.33]
[1739732181516,3.73655,2676.3,2676.1,5.33]
[1739732181718,0.7714,2676.4,2676.0,4.34041653]
[1739732181923,0.7714,2676.4,2676.0,3.59288006]
[1739732182096,4.50785,2676.4,2676.0,3.59288006]
[1739732183135,5.332243,2676.4,2675.7,11.15212006]
[1739732183311,3.7366,2676.3,2675.7,11.15212006]
[1739732183498,3.7366,2676.3,2675.7,14.88938006]
[1739732183699,3.73666,2676.2,2675.7,11.15212006]
[1739732184016,5.332243,2676.4,2675.7,11.15212006]
[1739732184235,4.2697343,2676.3,2675.8,3.73713]
[1739732184397,4.2697343,2676.3,2675.7,8.15212006]
[1739732184597,3.73707,2675.9,2675.5,5.33]
[1739732185094,3.7372,2675.8,2675.5,5.33]
[1739732185299,0.8003,2675.7,2675.5,5.33]
[1739732186101,4.53764,2675.7,2675.5,5.33]
[1739732186394,8.27505,2675.7,2675.4,3.59288006]
[1739732187037,3.73755,2675.6,2675.3,0.75736912]
[1739732187333,3.73764,2675.5,2675.3,0.75736912]
[1739732187519,3.73775,2675.4,2675.3,0.75736912]
[1739732188032,4.53805,2675.4,2675.3,0.75736912]
[1739732188905,0.8003,2675.4,2675.3,0.75736912]
[1739732189137,0.827519,2675.6,2675.3,0.75736912]
[1739732189348,0.8003,2675.7,2675.3,0.75736912]
[1739732189522,0.8003,2675.9,2675.2,3.73791]
[1739732189732,0.8003,2675.9,2675.3,3.73787]
[1739732189733,3.73721,2675.8,2675.3,3.73787]
[1739732190339,0.8003,2675.9,2675.4,7.33062006]
[1739732190638,3.73699,2676.0,2675.5,3.7376]
[1739732190803,0.8003,2676.4,2675.7,7.33008006]
[1739732191005,3.73665,2676.2,2675.7,3.59288006]
[1739732191946,3.73681,2676.1,2675.7,3.59288006]
[1739732192243,3.73659,2676.3,2675.7,3.59288006]
[1739732192440,4.53644,2676.6,2676.1,0.794]
[1739732192607,3.73592,2676.8,2676.3,3.59288006]
[1739732192806,7.47182,2676.8,2676.3,3.59288006]
[1739732193006,8.299032,2676.8,2676.3,3.59288006]
[1739732193228,3.73596,2676.7,2676.3,3.59288006]
[1739732194718,0.827212,2676.8,2676.3,3.59288006]
[1739732195039,4.53674,2676.4,2676.0,3.59288006]
[1739732195772,0.8003,2676.4,2676.0,3.59288006]
[1739732195911,3.73617,2676.6,2676.0,3.59288006]
[1739732196111,0.8003,2676.7,2676.3,3.59288006]
[1739732196436,3.73587,2676.8,2676.3,4.38688006]
[1739732197247,3.73553,2677.0,2676.5,3.7362]
[1739732197807,3.73571,2676.9,2676.4,3.73634]
[1739732198010,3.73553,2677.0,2676.4,3.73634]
[1739732198206,3.73553,2677.0,2676.5,3.73612]
[1739732198453,3.73553,2677.0,2676.6,3.59288006]
[1739732199309,4.53571,2677.1,2676.6,3.59288006]
[1739732199511,3.7356,2677.0,2676.6,3.59288006]
[1739732201246,4.53578,2677.1,2676.6,3.59288006]
[1739732201411,3.73552,2677.0,2676.6,3.59288006]
[1739732201849,3.73568,2676.9,2676.6,3.59288006]
[1739732202052,7.47117,2677.0,2676.6,3.59288006]
[1739732202424,3.73552,2677.0,2676.6,3.59288006]
[1739732202616,3.73574,2676.9,2676.6,3.59288006]
[1739732203015,3.73552,2677.0,2676.6,3.59288006]
[1739732203549,7.47112,2677.0,2676.6,3.59288006]
[1739732203847,3.73552,2677.0,2676.6,3.59288006]
[1739732204154,3.73567,2676.9,2676.6,3.59288006]
[1739732205695,3.73555,2677.0,2676.6,3.59288006]
[1739732205892,4.53568,2677.1,2676.6,7.32893006]
[1739732206359,7.47087,2677.1,2676.7,0.8266]
[1739732206558,3.73538,2677.1,2676.7,0.8266]
[1739732206776,3.73562,2677.0,2676.7,0.8266]
[1739732208791,3.7358,2676.8,2676.7,0.8266]
[1739732209361,3.73555,2677.0,2676.7,0.8266]
[1739732209970,7.47119,2677.0,2676.7,0.8266]
[1739732210171,3.73567,2676.9,2676.7,0.8266]
[1739732210563,3.73567,2676.9,2676.6,3.59288006]
[1739732211100,3.73575,2676.9,2676.6,3.59288006]
[1739732213020,3.73555,2677.0,2676.6,3.59288006]
[1739732213478,0.8143,2677.3,2676.6,3.59288006]
[1739732213677,3.73548,2677.1,2676.6,3.59288006]
[1739732213980,3.73544,2677.1,2676.6,7.32894006]
[1739732214218,3.73558,2677.0,2676.6,3.59288006]
[1739732215620,3.73575,2676.9,2676.6,3.59288006]
[1739732217432,3.73574,2676.9,2676.6,3.59288006]
[1739732217610,3.73588,2676.8,2676.6,3.59288006]
[1739732220113,3.73572,2676.9,2676.6,3.59288006]
[1739732220321,3.7358,2676.8,2676.3,3.59288006]
[1739732220513,3.73609,2676.6,2676.3,3.59288006]
[1739732221309,3.73609,2676.6,2676.2,6.1118]
[1739732221310,0.7749,2676.5,2676.2,5.33]
[1739732221520,4.51122,2676.5,2676.0,8.87161009]
[1739732222097,3.73609,2676.6,2676.1,3.73666]
[1739732222311,3.73609,2676.6,2676.0,8.87161009]
[1739732222512,7.47227,2676.6,2676.1,3.73678]
[1739732222714,3.73609,2676.6,2676.0,8.87156009]
[1739732222912,3.73609,2676.6,2676.1,3.73673]
[1739732223611,3.73609,2676.6,2676.0,8.87156009]
[1739732223816,3.73609,2676.6,2676.0,8.87151009]
[1739732224025,3.73609,2676.6,2676.1,3.73673]
[1739732224240,0.7749,2676.9,2676.3,3.59288006]
[1739732224426,3.73562,2677.0,2676.6,0.7818]
[1739732226151,0.454928,2677.2,2676.6,4.37468006]
[1739732226332,4.51004,2677.3,2676.6,4.37468006]
[1739732226532,3.73532,2677.2,2676.7,3.73587]
[1739732227833,3.73514,2677.3,2676.7,3.73586]
[1739732228061,3.73514,2677.3,2676.7,4.62014753]
[1739732228760,7.47035,2677.3,2676.7,4.62014753]
[1739732228961,3.73514,2677.3,2676.7,4.62010753]
[1739732229137,3.73514,2677.3,2676.8,3.73576]
[1739732229844,0.7749,2677.5,2676.9,4.37408006]
[1739732230049,3.73475,2677.6,2677.2,3.59288006]
[1739732230765,3.73483,2677.5,2677.2,3.59288006]
[1739732231338,3.7352,2677.3,2676.9,4.37408006]
[1739732231765,3.73518,2677.3,2676.9,4.37408006]
[1739732232276,3.73518,2677.3,2676.9,8.10973006]
[1739732233070,3.73518,2677.3,2676.9,4.37408006]
[1739732235187,3.73533,2677.2,2676.9,4.37408006]
[1739732235674,4.51446,2677.4,2676.9,4.37408006]
[1739732236090,3.73526,2677.2,2676.9,4.37408006]
[1739732236648,4.51446,2677.4,2676.9,4.37408006]
[1739732236855,8.24954,2677.4,2676.9,4.37408006]
[1739732237053,3.73511,2677.3,2676.9,4.37408006]
[1739732238075,0.7794,2677.4,2676.9,4.37408006]
[1739732238278,3.73505,2677.4,2676.9,9.45364007]
[1739732238640,0.7794,2677.6,2677.2,3.59288006]
[1739732238977,3.73496,2677.4,2677.0,0.7812]
[1739732239200,0.7794,2677.5,2676.9,3.59288006]
[1739732239407,3.73531,2677.2,2676.9,3.59288006]
[1739732239766,3.73524,2677.2,2676.9,3.59288006]
[1739732241205,3.73539,2677.1,2676.8,0.7812]
[1739732241404,3.73526,2677.2,2676.8,0.7812]
[1739732242173,3.73538,2677.1,2676.8,0.7812]
[1739732242377,3.73538,2677.1,2676.7,5.33]
[1739732242707,3.73578,2676.9,2676.7,5.33]
[1739732242928,3.73578,2676.9,2676.6,4.37408006]
[1739732243107,4.51479,2677.1,2676.6,4.37408006]
[1739732243295,4.51479,2677.1,2676.6,8.11004006]
[1739732243486,3.73534,2677.2,2676.7,3.73594]
[1739732243683,3.73534,2677.2,2676.6,9.82765907]
[1739732243883,3.73534,2677.2,2676.8,3.73579]
[1739732244682,3.735,2677.4,2676.9,3.59288006]
[1739732244885,3.73478,2677.6,2677.1,3.73537]
[1739732245082,3.73476,2677.6,2677.2,3.59288006]
[1739732245287,7.46956,2677.6,2677.2,3.59288006]
[1739732245897,3.73489,2677.5,2677.2,3.59288006]
[1739732246212,3.73476,2677.6,2677.2,3.59288006]
[1739732246725,7.46956,2677.6,2677.2,3.59288006]
[1739732247303,3.73485,2677.5,2677.2,3.59288006]